lending/lending_fUSD_20250121
["ID","MTS","AMOUNT","RATE_DAILY","PERIOD"]
[349868280,1737468639266,-500.0,0.0002017,2]
[349868281,1737468639275,-500.0,0.0002017,2]
[349868282,1737468639285,-796.9,0.0002017,2]
[349868283,1737468639295,-1165.52,0.0002017,2]
[349868284,1737468639304,-500.0,0.0002017,2]
[349868285,1737468639315,-480.32,0.0002017,2]
[349868286,1737468639325,-500.0,0.0002017,2]
[349868287,1737468639334,-500.0,0.0002017,2]
[349868288,1737468639344,-404.3,0.0002017,2]
[349868289,1737468639353,-160.89,0.0002017,2]
[349868290,1737468639363,-1091.43,0.0002017,2]
[349868291,1737468639373,-500.0,0.0002017,2]
[349868292,1737468639383,-635.05,0.0002017,2]
[349868293,1737468639392,-500.0,0.0002017,2]
[349868294,1737468639402,-507.96,0.0002017,2]
[349868295,1737468639412,-500.0,0.0002017,2]
[349868296,1737468639422,-500.0,0.0002017,2]
[349868297,1737468639432,-702.41,0.0002017,2]
[349868298,1737468639442,-500.0,0.0002017,2]
[349868299,1737468639452,-500.0,0.0002017,2]
[349868300,1737468639462,-569.01,0.0002017,2]
[349868301,1737468639472,-500.0,0.0002017,2]
[349868302,1737468639482,-540.29,0.0002017,2]
[349868303,1737468639495,-500.0,0.0002017,2]
[349868304,1737468639505,-500.0,0.0002017,2]
[349868305,1737468639514,-500.0,0.0002017,2]
[349868306,1737468639524,-500.0,0.0002017,2]
[349868307,1737468639535,-500.0,0.0002017,2]
[349868308,1737468639544,-500.0,0.0002017,2]
[349868309,1737468639554,-500.0,0.0002017,2]
[349868310,1737468639565,-500.0,0.0002017,2]
[349868311,1737468639577,-500.0,0.0002017,2]
[349868312,1737468639587,-721.18,0.0002017,2]
[349868313,1737468639596,-1409.37,0.0002017,2]
[349868314,1737468639605,-500.0,0.0002017,2]
[349868315,1737468639615,-538.3521382,0.0002017,2]
[349868316,1737468639625,-500.0,0.0002017,2]
[349868317,1737468639679,-500.0,0.00020171,2]
[349868318,1737468639693,-500.0,0.00020171,2]
[349868319,1737468639705,-500.0,0.00020171,2]
[349868320,1737468639716,-500.0,0.00020171,2]
[349868321,1737468639726,-500.0,0.00020171,2]
[349868322,1737468639737,-500.0,0.00020171,2]
[349868323,1737468639746,-500.0,0.00020172,2]
[349868324,1737468639758,-501.64,0.00020172,2]
[349868325,1737468639768,-500.0,0.00020172,2]
[349868326,1737468639778,-1000.0,0.00020205,2]
[349868327,1737468639789,-1000.0,0.0002025,2]
[349868328,1737468639802,-497.31339851,0.00020282,2]
[349868329,1737468639812,-1651.0,0.000203,2]
[349868330,1737468639823,-170.40183452,0.00020315,2]
[349868331,1737468639832,-2032.37,0.00020315,7]
[349868332,1737468639842,-2032.37,0.00020315,7]
[349868333,1737468639851,-1000.0,0.00020329,2]
[349868334,1737468639860,-437.71,0.00020356,2]
[349868335,1737468639870,-150.0,0.00020356,2]
[349868336,1737468639880,-150.0,0.00020356,2]
[349868337,1737468639890,-150.0,0.00020356,2]
[349868338,1737468639898,-1000.0,0.00020395,2]
[349868339,1737468639907,-500.0,0.00020395,2]
[349868340,1737468639918,-500.0,0.00020395,2]
[349868341,1737468639927,-500.0,0.00020395,2]
[349868342,1737468639936,-500.0,0.00020395,2]
[349868343,1737468639946,-959.2,0.00020395,2]
[349868344,1737468639955,-570.76,0.00020395,2]
[349868345,1737468639964,-858.74,0.00020395,2]
[349868346,1737468639973,-552.55,0.00020395,2]
[349868347,1737468639983,-862.45,0.00020395,2]
[349868348,1737468639992,-500.0,0.00020395,2]
[349868349,1737468640002,-500.0,0.00020395,2]
[349868350,1737468640011,-899.84,0.00020395,2]
[349868351,1737468640021,-500.0,0.00020395,2]
[349868352,1737468640030,-1199.08,0.00020395,2]
[349868353,1737468640040,-500.0,0.00020395,2]
[349868354,1737468640049,-937.87,0.00020395,2]
[349868355,1737468640059,-500.0,0.00020395,2]
[349868356,1737468640068,-500.0,0.00020395,2]
[349868357,1737468640077,-1537.47,0.00020395,2]
[349868358,1737468640086,-711.75,0.00020395,2]
[349868359,1737468640095,-500.0,0.00020395,2]
[349868360,1737468640105,-408.20373904,0.00020421,2]
[349868361,1737468640114,-500.0,0.00020443,2]
[349868362,1737468640124,-500.0,0.00020443,2]
[349868363,1737468640133,-500.0,0.00020443,2]
[349868364,1737468640142,-500.0,0.00020443,2]
[349868365,1737468640151,-500.0,0.00020443,2]
[349868366,1737468640160,-322.81149967,0.00020443,2]
[349868367,1737468640169,-500.0,0.00020443,2]
[349868368,1737468640178,-500.0,0.00020443,2]
[349868369,1737468640187,-500.0,0.00020443,2]
[349868370,1737468640196,-500.0,0.00020443,2]
[349868371,1737468640206,-1234.28,0.00020443,2]
[349868372,1737468640215,-500.0,0.00020443,2]
[349868373,1737468640232,-298.879427,0.00020443,2]
[349868374,1737468640241,-590.24,0.00020443,2]
[349868375,1737468640250,-962.75,0.00020443,2]
[349868376,1737468640259,-500.0,0.00020443,2]
[349868377,1737468640268,-2556.76,0.00020443,2]
[349868378,1737468640277,-500.0,0.00020443,2]
[349868379,1737468640287,-314.513431,0.00020443,2]
[349868380,1737468640296,-1002.41,0.00020443,2]
[349868381,1737468640305,-543.17,0.00020443,2]
[349868382,1737468640316,-723.57,0.00020443,2]
[349868383,1737468640326,-947.68,0.00020443,2]
[349868384,1737468640335,-1726.76,0.00020443,2]
[349868385,1737468640345,-549.18,0.00020443,2]
[349868386,1737468640354,-1533.33,0.00020443,2]
[349868387,1737468640364,-500.0,0.00020443,2]
[349868388,1737468640374,-737.83,0.00020443,2]
[349868389,1737468640383,-1518.28,0.00020443,2]
[349868390,1737468640392,-784.21,0.00020443,2]
[349868391,1737468640402,-2390.17,0.00020443,2]
[349868392,1737468640411,-747.93,0.00020443,2]
[349868393,1737468640420,-500.0,0.00020443,2]
[349868394,1737468640430,-2271.93,0.00020443,2]
[349868395,1737468640439,-1042.84,0.00020443,2]
[349868396,1737468640449,-500.0,0.00020443,2]
[349868397,1737468640458,-721.2,0.00020443,2]
[349868398,1737468640467,-2259.93,0.00020443,2]
[349868399,1737468640477,-500.0,0.00020443,2]
[349868400,1737468640489,-500.0,0.00020443,2]
[349868401,1737468640499,-586.52,0.00020443,2]
[349868402,1737468640508,-2324.13,0.00020443,2]
[349868403,1737468640517,-500.0,0.00020443,2]
[349868404,1737468640526,-1489.79,0.00020443,2]
[349868405,1737468640537,-604.93,0.00020443,2]
[349868406,1737468640546,-500.0,0.00020443,2]
[349868407,1737468640555,-195.35237339,0.00020444,2]
[349868408,1737468640567,-500.0,0.00020444,2]
[349868409,1737468640578,-500.0,0.00020444,2]
[349868410,1737468640587,-190.22,0.00020444,2]
[349868411,1737468640597,-500.0,0.00020444,2]
[349868412,1737468640607,-310.48012966,0.00020444,2]
[349868413,1737468640616,-500.0,0.00020444,2]
[349868414,1737468640626,-500.0,0.00020444,2]
[349868415,1737468640635,-500.0,0.00020444,2]
[349868416,1737468640645,-500.0,0.00020444,2]
[349868417,1737468640654,-500.0,0.00020444,2]
[349868418,1737468640667,-500.0,0.00020444,2]
[349868419,1737468640676,-500.0,0.00020444,2]
[349868420,1737468640686,-506.65,0.00020444,2]
[349868421,1737468640695,-500.0,0.00020444,2]
[349868422,1737468640705,-500.0,0.00020444,2]
[349868423,1737468640714,-500.0,0.00020444,2]
[349868424,1737468640724,-626.09,0.00020444,2]
[349868425,1737468640733,-500.0,0.00020444,2]
[349868426,1737468640742,-500.0,0.00020444,2]
[349868427,1737468640752,-500.0,0.00020444,2]
[349868428,1737468640761,-500.0,0.00020444,2]
[349868429,1737468640770,-500.0,0.00020444,2]
[349868430,1737468640780,-500.0,0.00020444,2]
[349868431,1737468640790,-500.0,0.00020444,2]
[349868432,1737468640799,-500.0,0.00020444,2]
[349868433,1737468640809,-796.9,0.00020444,2]
[349868434,1737468640819,-1165.52,0.00020444,2]
[349868435,1737468640829,-500.0,0.00020444,2]
[349868436,1737468640838,-500.0,0.00020444,2]
[349868437,1737468640848,-500.0,0.00020444,2]
[349868438,1737468640857,-1091.43,0.00020444,2]
[349868439,1737468640867,-500.0,0.00020444,2]
[349868440,1737468640876,-500.0,0.00020444,2]
[349868441,1737468640886,-507.96,0.00020444,2]
[349868442,1737468640895,-500.0,0.00020444,2]
[349868443,1737468640904,-500.0,0.00020444,2]
[349868444,1737468640914,-32.17837636,0.00020444,2]
[349868445,1737468640977,-500.0,0.00020121,2]
[349868446,1737468640987,-670.23162364,0.00020444,2]
[349868447,1737468640997,-500.0,0.00020444,2]
[349868448,1737468641006,-220.9,0.00020444,2]
[349868449,1737468641015,-569.01,0.00020444,2]
[349868450,1737468641024,-500.0,0.00020444,2]
[349868451,1737468641034,-540.29,0.00020444,2]
[349868452,1737468641044,-500.0,0.00020444,2]
[349868453,1737468641054,-500.0,0.00020444,2]
[349868454,1737468641065,-500.0,0.00020444,2]
[349868455,1737468641074,-284.2156329,0.00020444,2]
[349868456,1737468641086,-215.7843671,0.00020444,2]
[349868457,1737468641095,-500.0,0.00020444,2]
[349868458,1737468641105,-500.0,0.00020444,2]
[349868459,1737468641114,-473.98998215,0.00020444,2]
[349868460,1737468641124,-500.0,0.00020444,2]
[349868461,1737468641133,-500.0,0.00020444,2]
[349868462,1737468641142,-721.18,0.00020444,2]
[349868463,1737468641152,-1409.37,0.00020444,2]
[349868464,1737468641161,-500.0,0.00020444,2]
[349868465,1737468641170,-406.90365075,0.00020444,2]
[349868466,1737468641182,-93.09634925,0.00020444,2]
[349868467,1737468641191,-490.21013521,0.00020445,2]
[349868468,1737468641200,-500.0,0.00020445,2]
[349868469,1737468641210,-500.0,0.00020445,2]
[349868470,1737468641219,-500.0,0.00020445,2]
[349868471,1737468641228,-500.0,0.00020445,2]
[349868472,1737468641238,-500.0,0.00020445,2]
[349868473,1737468641246,-258.02602629,0.00020446,2]
[349868474,1737468641256,-501.64,0.00020446,2]
[349868475,1737468641265,-500.0,0.00020446,2]
[349868476,1737468641274,-773.11,0.00020485,2]
[349868477,1737468641284,-438.48,0.00020485,2]
[349868478,1737468641293,-140.93748925,0.00020485,2]
[349868479,1737468641799,-259.09,0.00018994,2]
[349868480,1737468641809,-579.34,0.00019573,2]
[349868481,1737468641821,-579.34,0.00019847,2]
[349868482,1737468641832,-579.34,0.00020121,2]
[349868483,1737468641842,-942.68,0.00020169,2]
[349868484,1737468641853,-500.0,0.00020395,2]
[349868485,1737468641862,-480.83780921,0.00020395,2]
[349868486,1737468641878,-98.50219079,0.00020395,2]
[349868487,1737468641888,-942.68,0.00020443,2]
[349868488,1737468641898,-297.54251075,0.00020485,2]
[349868489,1737468641908,-438.48,0.00020485,2]
[349868490,1737468641917,-438.48,0.00020485,2]
[349868491,1737468641928,-438.48,0.00020485,2]
[349868492,1737468641938,-438.48,0.00020485,2]
[349868493,1737468641948,-438.48,0.00020485,2]
[349868494,1737468641958,-438.48,0.00020485,2]
[349868495,1737468641967,-438.48,0.00020485,2]
[349868496,1737468641977,-101.62753161,0.00020485,2]
[349868497,1737468641990,-336.85246839,0.00020485,2]
[349868498,1737468642000,-438.48,0.00020485,2]
[349868499,1737468642010,-438.48,0.00020485,2]
[349868500,1737468642020,-438.48,0.00020485,2]
[349868501,1737468642030,-1000.0,0.0002049,2]
[349868502,1737468642040,-162.049111,0.00020502,2]
[349868503,1737468642052,-837.950889,0.00020502,2]
[349868504,1737468642062,-150.0,0.00020538,2]
[349868505,1737468642071,-402.56291362,0.00020548,2]
[349868506,1737468642081,-497.31339851,0.00020551,2]
[349868507,1737468642091,-2032.37,0.00020589,7]
[349868508,1737468642100,-2032.37,0.00020589,7]
[349868509,1737468642110,-1000.0,0.00020632,2]
[349868510,1737468642120,-150.0,0.00020634,2]
[349868511,1737468642130,-500.0,0.00020669,2]
[349868512,1737468642140,-500.0,0.00020669,2]
[349868513,1737468642149,-500.0,0.00020669,2]
[349868514,1737468642159,-500.0,0.00020669,2]
[349868515,1737468642169,-959.2,0.00020669,2]
[349868516,1737468642179,-570.76,0.00020669,2]
[349868517,1737468642189,-858.74,0.00020669,2]
[349868518,1737468642199,-552.55,0.00020669,2]
[349868519,1737468642209,-862.45,0.00020669,2]
[349868520,1737468642219,-219.96982964,0.00020669,2]
[349868521,1737468642258,-280.03017036,0.00020669,2]
[349868522,1737468642268,-371.21978864,0.00020669,2]
[349868549,1737468642647,-128.78021136,0.00020669,2]
[349868550,1737468642655,-899.84,0.00020669,2]
[349868551,1737468642663,-500.0,0.00020669,2]
[349868552,1737468642672,-1199.08,0.00020669,2]
[349868553,1737468642680,-500.0,0.00020669,2]
[349868554,1737468642688,-937.87,0.00020669,2]
[349868555,1737468642696,-314.85,0.00020669,2]
[349868556,1737468642704,-1537.47,0.00020669,2]
[349868557,1737468642712,-500.0,0.00020669,2]
[349868558,1737468642720,-711.75,0.00020669,2]
[349868559,1737468642729,-500.0,0.00020669,2]
[349868560,1737468642736,-500.0,0.00020669,2]
[349868561,1737468642744,-266.64043611,0.00020669,2]
[349868562,1737468642753,-312.69956389,0.00020669,2]
[349868563,1737468642762,-1000.0,0.00020707,2]
[349868564,1737468642770,-150.0,0.00020715,2]
[349868565,1737468642777,-500.0,0.00020717,2]
[349868566,1737468642785,-390.39059878,0.00020717,2]
[349868567,1737468642793,-500.0,0.00020717,2]
[349868568,1737468642800,-500.0,0.00020717,2]
[349868569,1737468642808,-500.0,0.00020717,2]
[349868570,1737468642818,-500.0,0.00020717,2]
[349868571,1737468642828,-500.0,0.00020717,2]
[349868572,1737468642836,-500.0,0.00020717,2]
[349868573,1737468642844,-500.0,0.00020717,2]
[349868574,1737468642852,-590.24,0.00020717,2]
[349868575,1737468642860,-962.75,0.00020717,2]
[349868576,1737468642868,-500.0,0.00020717,2]
[349868577,1737468642876,-2556.76,0.00020717,2]
[349868578,1737468642884,-89.62234175,0.00020717,2]
[349868579,1737468642895,-410.37765825,0.00020717,2]
[349868580,1737468642903,-47.43834175,0.00020717,2]
[349868581,1737468642913,-267.07508925,0.00020717,2]
[349868582,1737468642922,-1002.41,0.00020717,2]
[349868583,1737468642929,-543.17,0.00020717,2]
[349868584,1737468642937,-723.57,0.00020717,2]
[349868585,1737468642946,-947.68,0.00020717,2]
[349868586,1737468642955,-1726.76,0.00020717,2]
[349868587,1737468642964,-549.18,0.00020717,2]
[349868588,1737468642973,-1533.33,0.00020717,2]
[349868589,1737468642980,-500.0,0.00020717,2]
[349868590,1737468642988,-737.83,0.00020717,2]
[349868591,1737468642997,-1518.28,0.00020717,2]
[349868593,1737468643007,-784.21,0.00020717,2]
[349868595,1737468643016,-2390.17,0.00020717,2]
[349868596,1737468643023,-747.93,0.00020717,2]
[349868597,1737468643032,-500.0,0.00020717,2]
[349868599,1737468643042,-2271.93,0.00020717,2]
[349868600,1737468643052,-1042.84,0.00020717,2]
[349868601,1737468643062,-500.0,0.00020717,2]
[349868602,1737468643073,-721.2,0.00020717,2]
[349868603,1737468643084,-2259.93,0.00020717,2]
[349868604,1737468643095,-500.0,0.00020717,2]
[349868605,1737468643107,-500.0,0.00020717,2]
[349868606,1737468643117,-586.52,0.00020717,2]
[349868607,1737468643127,-2324.13,0.00020717,2]
[349868608,1737468643137,-500.0,0.00020717,2]
[349868609,1737468643148,-1489.79,0.00020717,2]
[349868610,1737468643158,-604.93,0.00020717,2]
[349868611,1737468643168,-500.0,0.00020717,2]
[349868612,1737468643179,-942.68,0.00020717,2]
[349868613,1737468643189,-500.0,0.00020718,2]
[349868614,1737468643200,-500.0,0.00020718,2]
[349868615,1737468643210,-500.0,0.00020718,2]
[349868616,1737468643221,-500.0,0.00020718,2]
[349868617,1737468643231,-221.26042281,0.00020718,2]
[349868618,1737468643241,-500.0,0.00020718,2]
[349868619,1737468643251,-500.0,0.00020718,2]
[349868620,1737468643261,-500.0,0.00020718,2]
[349868621,1737468643272,-500.0,0.00020718,2]
[349868622,1737468643283,-500.0,0.00020718,2]
[349868623,1737468643294,-506.65,0.00020718,2]
[349868624,1737468643304,-500.0,0.00020718,2]
[349868625,1737468643316,-500.0,0.00020718,2]
[349868626,1737468643326,-500.0,0.00020718,2]
[349868627,1737468643335,-626.09,0.00020718,2]
[349868628,1737468643345,-500.0,0.00020718,2]
[349868629,1737468643355,-500.0,0.00020718,2]
[349868630,1737468643366,-500.0,0.00020718,2]
[349868631,1737468643376,-500.0,0.00020718,2]
[349868632,1737468643386,-500.0,0.00020718,2]
[349868633,1737468643396,-500.0,0.00020718,2]
[349868634,1737468643406,-1165.52,0.00020718,2]
[349868635,1737468643416,-500.0,0.00020718,2]
[349868636,1737468643426,-500.0,0.00020718,2]
[349868637,1737468643436,-1091.43,0.00020718,2]
[349868638,1737468643446,-500.0,0.00020718,2]
[349868639,1737468643456,-500.0,0.00020718,2]
[349868640,1737468643466,-507.96,0.00020718,2]
[349868641,1737468643476,-500.0,0.00020718,2]
[349868642,1737468643487,-500.0,0.00020718,2]
[349868643,1737468643500,-702.41,0.00020718,2]
[349868644,1737468643510,-500.0,0.00020718,2]
[349868645,1737468643520,-569.01,0.00020718,2]
[349868646,1737468643531,-500.0,0.00020718,2]
[349868647,1737468643541,-540.29,0.00020718,2]
[349868648,1737468643550,-500.0,0.00020718,2]
[349868649,1737468643560,-500.0,0.00020718,2]
[349868650,1737468643575,-500.0,0.00020718,2]
[349868651,1737468643585,-500.0,0.00020718,2]
[349868652,1737468643596,-277.00804184,0.00020718,2]
[349868653,1737468643607,-500.0,0.00020718,2]
[349868654,1737468643620,-500.0,0.00020718,2]
[349868655,1737468643631,-500.0,0.00020718,2]
[349868656,1737468643642,-721.18,0.00020718,2]
[349868657,1737468643652,-1409.37,0.00020718,2]
[349868658,1737468643664,-538.00695615,0.00020718,2]
[349868659,1737468643677,-500.0,0.00020718,2]
[349868660,1737468643687,-500.0,0.00020719,2]
[349868661,1737468643697,-500.0,0.00020719,2]
[349868662,1737468643708,-500.0,0.00020719,2]
[349868663,1737468643718,-500.0,0.00020719,2]
[349868664,1737468643728,-500.0,0.00020719,2]
[349868665,1737468643739,-501.64,0.0002072,2]
[349868666,1737468643749,-500.0,0.0002072,2]
[349868667,1737468643759,-1000.0,0.00020737,2]
[349868668,1737468643769,-216.01,0.00020766,2]
[349868669,1737468643780,-150.0,0.00020781,2]
[349868670,1737468643790,-3000.0,0.0002079,2]
[349868671,1737468643800,-1000.0,0.00020812,2]
[349868672,1737468643810,-497.31339851,0.00020821,2]
[349868673,1737468643821,-1000.0,0.00020832,2]
[349868674,1737468643834,-3902.0,0.00020845,2]
[349868675,1737468643845,-150.0,0.00020845,2]
[349868676,1737468643855,-964.157,0.00020845,2]
[349868677,1737468643866,-160.787,0.0002085,2]
[349868678,1737468643877,-150.0,0.00020859,2]
[349868679,1737468643887,-150.0,0.00020863,2]
[349868680,1737468643897,-2032.37,0.00020863,7]
[349868681,1737468643907,-2032.37,0.00020863,7]
[349868682,1737468643917,-1000.0,0.00020868,2]
[349868683,1737468643928,-150.0,0.0002089,2]
[349868684,1737468643938,-500.0,0.000209,2]
[349868685,1737468643947,-163.17815438,0.000209,2]
[349868686,1737468643957,-1000.0,0.00020939,2]
[349868687,1737468643967,-500.0,0.00020943,2]
[349868688,1737468643978,-500.0,0.00020943,2]
[349868689,1737468643988,-500.0,0.00020943,2]
[349868690,1737468643998,-500.0,0.00020943,2]
[349868691,1737468644008,-959.2,0.00020943,2]
[349868692,1737468644018,-570.76,0.00020943,2]
[349868693,1737468644028,-858.74,0.00020943,2]
[349868694,1737468644039,-552.55,0.00020943,2]
[349868695,1737468644050,-862.45,0.00020943,2]
[349868696,1737468644060,-500.0,0.00020943,2]
[349868697,1737468644074,-500.0,0.00020943,2]
[349868698,1737468644084,-899.84,0.00020943,2]
[349868699,1737468644096,-500.0,0.00020943,2]
[349868700,1737468644106,-1199.08,0.00020943,2]
[349868701,1737468644116,-500.0,0.00020943,2]
[349868702,1737468644126,-937.87,0.00020943,2]
[349868703,1737468644136,-1537.47,0.00020943,2]
[349868704,1737468644147,-500.0,0.00020943,2]
[349868705,1737468644339,-711.75,0.00020943,2]
[349868706,1737468644349,-500.0,0.00020943,2]
[349868707,1737468644359,-500.0,0.00020943,2]
[349868708,1737468644368,-579.34,0.00020943,2]
[349868709,1737468644378,-1000.0,0.00020952,2]
[349868710,1737468644387,-150.0,0.00020952,2]
[349868711,1737468644397,-150.0,0.00020958,2]
[349868712,1737468644406,-150.0,0.00020977,2]
[349868713,1737468644415,-464.0,0.00020986,2]
[349868714,1737468644425,-18829.81673634,0.0002099,6]
[349868724,1737468645495,-300.75301768,0.00019573,2]
[349868725,1737468645507,-199.24698232,0.00019573,2]
[349868726,1737468645517,-482.805228,0.00019573,2]
[349868727,1737468645527,-500.0,0.00019847,2]
[349868728,1737468645536,-5062.29427716,0.0002099,6]
[349868729,1737468645546,-500.0,0.00020991,2]
[349868730,1737468645555,-475.1240033,0.00020991,2]
[349868731,1737468645564,-500.0,0.00020991,2]
[349868732,1737468645577,-500.0,0.00020991,2]
[349868733,1737468645587,-500.0,0.00020991,2]
[349868734,1737468645596,-500.0,0.00020991,2]
[349868735,1737468645606,-500.0,0.00020991,2]
[349868736,1737468645615,-500.0,0.00020991,2]
[349868737,1737468645625,-962.75,0.00020991,2]
[349868738,1737468645634,-500.0,0.00020991,2]
[349868739,1737468645644,-2556.76,0.00020991,2]
[349868740,1737468645653,-500.0,0.00020991,2]
[349868741,1737468645663,-314.513431,0.00020991,2]
[349868742,1737468645673,-1002.41,0.00020991,2]
[349868743,1737468645683,-543.17,0.00020991,2]
[349868744,1737468645692,-723.57,0.00020991,2]
[349868745,1737468645702,-947.68,0.00020991,2]
[349868746,1737468645712,-1726.76,0.00020991,2]
[349868747,1737468645721,-549.18,0.00020991,2]
[349868748,1737468645730,-1533.33,0.00020991,2]
[349868749,1737468645740,-500.0,0.00020991,2]
[349868750,1737468645749,-737.83,0.00020991,2]
[349868751,1737468645759,-1518.28,0.00020991,2]
[349868752,1737468645768,-784.21,0.00020991,2]
[349868753,1737468645779,-2390.17,0.00020991,2]
[349868754,1737468645789,-747.93,0.00020991,2]
[349868755,1737468645798,-500.0,0.00020991,2]
[349868756,1737468645808,-2271.93,0.00020991,2]
[349868757,1737468645818,-1042.84,0.00020991,2]
[349868758,1737468645829,-500.0,0.00020991,2]
[349868759,1737468645839,-721.2,0.00020991,2]
[349868760,1737468645849,-2259.93,0.00020991,2]
[349868761,1737468645859,-500.0,0.00020991,2]
[349868762,1737468645868,-500.0,0.00020991,2]
[349868763,1737468645878,-586.52,0.00020991,2]
[349868764,1737468645887,-2324.13,0.00020991,2]
[349868765,1737468645897,-500.0,0.00020991,2]
[349868766,1737468645907,-1489.79,0.00020991,2]
[349868767,1737468645916,-604.93,0.00020991,2]
[349868768,1737468645926,-500.0,0.00020991,2]
[349868769,1737468645935,-942.68,0.00020991,2]
[349868770,1737468645945,-500.0,0.00020992,2]
[349868771,1737468645955,-500.0,0.00020992,2]
[349868772,1737468645965,-500.0,0.00020992,2]
[349868773,1737468645975,-500.0,0.00020992,2]
[349868774,1737468645986,-500.0,0.00020992,2]
[349868775,1737468645995,-500.0,0.00020992,2]
[349868776,1737468646005,-500.0,0.00020992,2]
[349868777,1737468646014,-500.0,0.00020992,2]
[349868778,1737468646024,-500.0,0.00020992,2]
[349868779,1737468646034,-506.65,0.00020992,2]
[349868780,1737468646043,-500.0,0.00020992,2]
[349868781,1737468646052,-500.0,0.00020992,2]
[349868782,1737468646062,-500.0,0.00020992,2]
[349868783,1737468646071,-626.09,0.00020992,2]
[349868784,1737468646080,-500.0,0.00020992,2]
[349868785,1737468646090,-266.32,0.00020992,2]
[349868786,1737468646099,-500.0,0.00020992,2]
[349868787,1737468646109,-500.0,0.00020992,2]
[349868788,1737468646118,-500.0,0.00020992,2]
[349868789,1737468646127,-500.0,0.00020992,2]
[349868790,1737468646137,-1165.52,0.00020992,2]
[349868791,1737468646146,-500.0,0.00020992,2]
[349868792,1737468646155,-500.0,0.00020992,2]
[349868793,1737468646165,-1091.43,0.00020992,2]
[349868794,1737468646175,-500.0,0.00020992,2]
[349868795,1737468646184,-500.0,0.00020992,2]
[349868796,1737468646194,-507.96,0.00020992,2]
[349868797,1737468646204,-500.0,0.00020992,2]
[349868798,1737468646214,-500.0,0.00020992,2]
[349868799,1737468646224,-702.41,0.00020992,2]
[349868800,1737468646233,-500.0,0.00020992,2]
[349868801,1737468646243,-569.01,0.00020992,2]
[349868802,1737468646252,-500.0,0.00020992,2]
[349868803,1737468646262,-540.29,0.00020992,2]
[349868804,1737468646271,-500.0,0.00020992,2]
[349868805,1737468646281,-500.0,0.00020992,2]
[349868806,1737468646290,-500.0,0.00020992,2]
[349868807,1737468646299,-500.0,0.00020992,2]
[349868808,1737468646309,-500.0,0.00020992,2]
[349868809,1737468646319,-111.21479434,0.00020992,2]
[349868810,1737468646331,-388.78520566,0.00020992,2]
[349868811,1737468646340,-439.06202676,0.00020992,2]
[349868813,1737468646356,-500.0,0.00020121,2]
[349868814,1737468646365,-60.93797324,0.00020992,2]
[349868815,1737468646375,-721.18,0.00020992,2]
[349868816,1737468646384,-1409.37,0.00020992,2]
[349868817,1737468646393,-500.0,0.00020992,2]
[349868818,1737468646403,-500.0,0.00020993,2]